[Event "Titled Tuesday Blitz July 18 Early 2023"]
[White "Sahib Singh"]
[Black "Harsh Suresh"]
[WhiteFideId "25618342"]
[BlackFideId "45018464"]
[WhiteElo "2664"]
[BlackElo "2844"]
[Result "0-1"]
[Round "9"]
[TimeControl "180+2"]
[Date "2023.07.18"]
[WhiteClock "0:00:00"]
[BlackClock "0:00:17"]
[Board "26"]

1. e4 {[%clk 0:02:55]}  g6 {[%clk 0:02:58]} 2. d4 {[%clk 0:02:53]}  Nf6 {[%clk 0:02:58]} 3. Nc3 {[%clk 0:02:54]}  d5 {[%clk 0:02:58]} 4. e5 {[%clk 0:02:54]}  Ne4 {[%clk 0:02:58]} 5. Bd3 {[%clk 0:02:51]}  Nxc3 {[%clk 0:02:58]} 6. bxc3 {[%clk 0:02:52]}  c5 {[%clk 0:02:59]} 7. h4 {[%clk 0:02:50]}  h5 {[%clk 0:02:59]} 8. Bd2 {[%clk 0:02:39]}  Nc6 {[%clk 0:02:58]} 9. Nf3 {[%clk 0:02:31]}  Bg4 {[%clk 0:02:57]} 10. Rb1 {[%clk 0:02:27]}  Rb8 {[%clk 0:02:56]} 11. Be3 {[%clk 0:02:14]}  e6 {[%clk 0:02:22]} 12. dxc5 {[%clk 0:02:11]}  Bg7 {[%clk 0:01:56]} 13. Bd4 {[%clk 0:02:06]}  O-O {[%clk 0:01:56]} 14. Be2 {[%clk 0:02:04]}  Bxf3 {[%clk 0:01:49]} 15. Bxf3 {[%clk 0:02:05]}  Bxe5 {[%clk 0:01:48]} 16. Qd3 {[%clk 0:01:39]}  Qf6 {[%clk 0:01:46]} 17. Rd1 {[%clk 0:01:34]}  b6 {[%clk 0:01:29]} 18. cxb6 {[%clk 0:01:27]}  Bxd4 {[%clk 0:01:28]} 19. cxd4 {[%clk 0:01:27]}  Rxb6 {[%clk 0:01:28]} 20. c3 {[%clk 0:01:23]}  Rb2 {[%clk 0:01:18]} 21. Rd2 {[%clk 0:01:23]}  Rfb8 {[%clk 0:01:15]} 22. Rxb2 {[%clk 0:01:22]}  Rxb2 {[%clk 0:01:16]} 23. O-O {[%clk 0:01:18]}  Qxh4 {[%clk 0:01:08]} 24. Qa6 {[%clk 0:01:16]}  Rb6 {[%clk 0:01:00]} 25. Qc8+ {[%clk 0:01:14]}  Qd8 {[%clk 0:00:59]} 26. Qxd8+ {[%clk 0:01:13]}  Nxd8 {[%clk 0:01:00]} 27. Rc1 {[%clk 0:01:01]}  Nc6 {[%clk 0:00:46]} 28. Rc2 {[%clk 0:00:56]}  Na5 {[%clk 0:00:46]} 29. Kh2 {[%clk 0:00:53]}  Nc4 {[%clk 0:00:41]} 30. Kg3 {[%clk 0:00:53]}  Na3 {[%clk 0:00:36]} 31. Re2 {[%clk 0:00:50]}  Rc6 {[%clk 0:00:36]} 32. Rb2 {[%clk 0:00:43]}  Rxc3 {[%clk 0:00:34]} 33. Rb8+ {[%clk 0:00:33]}  Kg7 {[%clk 0:00:34]} 34. Ra8 {[%clk 0:00:23]}  Nb5 {[%clk 0:00:32]} 35. a4 {[%clk 0:00:20]}  Nxd4 {[%clk 0:00:31]} 36. Rxa7 {[%clk 0:00:20]}  e5 {[%clk 0:00:25]} 37. Kh2 {[%clk 0:00:16]}  Nxf3+ {[%clk 0:00:24]} 38. gxf3 {[%clk 0:00:17]}  Rxf3 {[%clk 0:00:25]} 39. Kg2 {[%clk 0:00:18]}  Ra3 {[%clk 0:00:24]} 40. a5 {[%clk 0:00:18]}  d4 {[%clk 0:00:22]} 41. a6 {[%clk 0:00:17]}  g5 {[%clk 0:00:22]} 42. Ra8 {[%clk 0:00:11]}  Kg6 {[%clk 0:00:18]} 43. a7 {[%clk 0:00:10]}  Kf5 {[%clk 0:00:18]} 44. f3 {[%clk 0:00:03]}  h4 {[%clk 0:00:18]} 45. Kf2 {[%clk 0:00:00]}  Kf4 {[%clk 0:00:17]} 0-1


[Site "https://www.chess.com"]

[Event "Titled Tuesday Blitz July 18 Early 2023"]
[White "Gorovets, Andrey"]
[Black "Haug, Havard"]
[WhiteFideId "13504037"]
[BlackFideId "1547887"]
[WhiteElo "2839"]
[BlackElo "2661"]
[Result "0-1"]
[Round "9"]
[TimeControl "180+2"]
[Date "2023.07.18"]
[WhiteClock "0:00:00"]
[BlackClock "0:00:40"]
[Board "27"]

1. Nf3 {[%clk 0:02:58]}  Nf6 {[%clk 0:02:56]} 2. c4 {[%clk 0:02:58]}  e6 {[%clk 0:02:55]} 3. g3 {[%clk 0:02:57]}  d5 {[%clk 0:02:53]} 4. d4 {[%clk 0:02:58]}  c5 {[%clk 0:02:52]} 5. cxd5 {[%clk 0:02:57]}  exd5 {[%clk 0:02:52]} 6. Bg2 {[%clk 0:02:57]}  Nc6 {[%clk 0:02:51]} 7. O-O {[%clk 0:02:56]}  Be7 {[%clk 0:02:51]} 8. Nc3 {[%clk 0:02:55]}  O-O {[%clk 0:02:50]} 9. Be3 {[%clk 0:02:45]}  c4 {[%clk 0:02:45]} 10. Ne5 {[%clk 0:02:44]}  Be6 {[%clk 0:02:38]} 11. Nxc4 {[%clk 0:02:41]}  dxc4 {[%clk 0:02:30]} 12. d5 {[%clk 0:02:42]}  Nxd5 {[%clk 0:02:24]} 13. Nxd5 {[%clk 0:02:43]}  Rc8 {[%clk 0:02:18]} 14. Rc1 {[%clk 0:02:36]}  b5 {[%clk 0:02:01]} 15. a4 {[%clk 0:02:19]}  a6 {[%clk 0:01:55]} 16. Nb6 {[%clk 0:01:43]}  Rc7 {[%clk 0:01:43]} 17. Bf4 {[%clk 0:01:41]}  Rb7 {[%clk 0:01:37]} 18. Nd5 {[%clk 0:01:00]}  Rd7 {[%clk 0:01:24]} 19. Nxe7+ {[%clk 0:01:00]}  Nxe7 {[%clk 0:01:25]} 20. Qe1 {[%clk 0:00:57]}  Nd5 {[%clk 0:01:11]} 21. Bxd5 {[%clk 0:00:49]}  Rxd5 {[%clk 0:01:05]} 22. axb5 {[%clk 0:00:50]}  axb5 {[%clk 0:01:02]} 23. Qb4 {[%clk 0:00:49]}  Qd7 {[%clk 0:01:00]} 24. Ra1 {[%clk 0:00:37]}  Rd8 {[%clk 0:00:59]} 25. Rfe1 {[%clk 0:00:28]}  h6 {[%clk 0:00:55]} 26. Be3 {[%clk 0:00:26]}  Bh3 {[%clk 0:00:53]} 27. f3 {[%clk 0:00:26]}  Rd1 {[%clk 0:00:49]} 28. Kf2 {[%clk 0:00:21]}  Rxa1 {[%clk 0:00:46]} 29. Rxa1 {[%clk 0:00:22]}  Re8 {[%clk 0:00:46]} 30. Ra7 {[%clk 0:00:00]}  Qd1 {[%clk 0:00:40]} 0-1


[Site "https://www.chess.com"]

[Event "Titled Tuesday Blitz July 18 Early 2023"]
[White "Arat, Ufuk Sezen"]
[Black "Kosteniuk, Alexandra"]
[WhiteFideId "6309089"]
[BlackFideId "4128125"]
[WhiteElo "2617"]
[BlackElo "2803"]
[Result "1/2-1/2"]
[Round "9"]
[TimeControl "180+2"]
[Date "2023.07.18"]
[WhiteClock "0:00:12"]
[BlackClock "0:00:12"]
[Board "28"]

1. e4 {[%clk 0:02:58]}  c6 {[%clk 0:02:59]} 2. d4 {[%clk 0:02:57]}  d5 {[%clk 0:02:59]} 3. e5 {[%clk 0:02:57]}  c5 {[%clk 0:03:00]} 4. dxc5 {[%clk 0:02:58]}  e6 {[%clk 0:02:59]} 5. Nf3 {[%clk 0:02:57]}  Bxc5 {[%clk 0:02:57]} 6. a3 {[%clk 0:02:58]}  Nc6 {[%clk 0:02:54]} 7. b4 {[%clk 0:02:54]}  Be7 {[%clk 0:02:52]} 8. Bb2 {[%clk 0:02:46]}  f6 {[%clk 0:02:44]} 9. b5 {[%clk 0:02:43]}  Nxe5 {[%clk 0:02:41]} 10. Nxe5 {[%clk 0:02:43]}  fxe5 {[%clk 0:02:42]} 11. Bxe5 {[%clk 0:02:43]}  Nf6 {[%clk 0:02:41]} 12. Bd3 {[%clk 0:02:42]}  O-O {[%clk 0:02:40]} 13. O-O {[%clk 0:02:42]}  Bd7 {[%clk 0:02:36]} 14. Nd2 {[%clk 0:02:39]}  Be8 {[%clk 0:02:33]} 15. Qe2 {[%clk 0:02:24]}  Bh5 {[%clk 0:02:25]} 16. f3 {[%clk 0:02:24]}  Qd7 {[%clk 0:02:10]} 17. Nb3 {[%clk 0:02:15]}  Rae8 {[%clk 0:02:07]} 18. a4 {[%clk 0:02:11]}  Bd6 {[%clk 0:01:52]} 19. Rae1 {[%clk 0:02:11]}  Qc7 {[%clk 0:01:45]} 20. Nd4 {[%clk 0:01:44]}  Nd7 {[%clk 0:01:32]} 21. Bxd6 {[%clk 0:01:37]}  Qxd6 {[%clk 0:01:33]} 22. g4 {[%clk 0:01:05]}  Bf7 {[%clk 0:01:30]} 23. Qf2 {[%clk 0:00:51]}  g6 {[%clk 0:01:29]} 24. f4 {[%clk 0:00:44]}  e5 {[%clk 0:01:23]} 25. fxe5 {[%clk 0:00:42]}  Rxe5 {[%clk 0:01:22]} 26. Rxe5 {[%clk 0:00:37]}  Nxe5 {[%clk 0:01:21]} 27. Qf4 {[%clk 0:00:33]}  Nc4 {[%clk 0:01:09]} 28. Bxc4 {[%clk 0:00:30]}  Qxf4 {[%clk 0:01:09]} 29. Rxf4 {[%clk 0:00:31]}  dxc4 {[%clk 0:01:09]} 30. Re4 {[%clk 0:00:28]}  Re8 {[%clk 0:01:01]} 31. Rxe8+ {[%clk 0:00:27]}  Bxe8 {[%clk 0:01:02]} 32. Kf2 {[%clk 0:00:28]}  Bd7 {[%clk 0:00:59]} 33. h3 {[%clk 0:00:28]}  Kf7 {[%clk 0:00:58]} 34. Nf3 {[%clk 0:00:28]}  Kf6 {[%clk 0:00:42]} 35. Ke3 {[%clk 0:00:28]}  h5 {[%clk 0:00:42]} 36. Kf4 {[%clk 0:00:19]}  hxg4 {[%clk 0:00:40]} 37. hxg4 {[%clk 0:00:19]}  a6 {[%clk 0:00:39]} 38. Ne5 {[%clk 0:00:16]}  g5+ {[%clk 0:00:32]} 39. Ke4 {[%clk 0:00:16]}  Be8 {[%clk 0:00:31]} 40. bxa6 {[%clk 0:00:15]}  bxa6 {[%clk 0:00:30]} 41. a5 {[%clk 0:00:14]}  c3 {[%clk 0:00:29]} 42. Kd4 {[%clk 0:00:12]}  Ba4 {[%clk 0:00:27]} 43. Nd3 {[%clk 0:00:07]}  Bxc2 {[%clk 0:00:26]} 44. Nc5 {[%clk 0:00:07]}  Bd1 {[%clk 0:00:26]} 45. Kxc3 {[%clk 0:00:06]}  Bxg4 {[%clk 0:00:25]} 46. Nxa6 {[%clk 0:00:06]}  Bf3 {[%clk 0:00:21]} 47. Nc5 {[%clk 0:00:05]}  g4 {[%clk 0:00:22]} 48. Kd3 {[%clk 0:00:04]}  Kg5 {[%clk 0:00:21]} 49. Ke3 {[%clk 0:00:04]}  Kh4 {[%clk 0:00:19]} 50. Nd3 {[%clk 0:00:05]}  Ba8 {[%clk 0:00:18]} 51. Ne1 {[%clk 0:00:05]}  Kg3 {[%clk 0:00:17]} 52. Ke2 {[%clk 0:00:05]}  Kh2 {[%clk 0:00:17]} 53. Kf2 {[%clk 0:00:05]}  g3+ {[%clk 0:00:17]} 54. Ke2 {[%clk 0:00:05]}  Bb7 {[%clk 0:00:17]} 55. Ke3 {[%clk 0:00:05]}  Ba6 {[%clk 0:00:16]} 56. Kf3 {[%clk 0:00:05]}  Bb7+ {[%clk 0:00:15]} 57. Kg4 {[%clk 0:00:05]}  Bc8+ {[%clk 0:00:11]} 58. Kf3 {[%clk 0:00:06]}  Bb7+ {[%clk 0:00:11]} 59. Kg4 {[%clk 0:00:06]}  Bc8+ {[%clk 0:00:12]} 60. Kf3 {[%clk 0:00:07]}  Kh3 {[%clk 0:00:12]} 61. Ke2 {[%clk 0:00:07]}  Bb7 {[%clk 0:00:12]} 62. Ke3 {[%clk 0:00:07]}  Kh2 {[%clk 0:00:12]} 63. Kf4 {[%clk 0:00:08]}  Ba6 {[%clk 0:00:11]} 64. Kg4 {[%clk 0:00:08]}  Be2+ {[%clk 0:00:11]} 65. Kf4 {[%clk 0:00:08]}  g2 {[%clk 0:00:11]} 66. Nxg2 {[%clk 0:00:08]}  Kxg2 {[%clk 0:00:12]} 67. Ke4 {[%clk 0:00:08]}  Bf3+ {[%clk 0:00:11]} 68. Kd4 {[%clk 0:00:09]}  Kg3 {[%clk 0:00:11]} 69. a6 {[%clk 0:00:10]}  Kg2 {[%clk 0:00:11]} 70. a7 {[%clk 0:00:11]}  Kg3 {[%clk 0:00:12]} 71. a8=Q {[%clk 0:00:12]}  Bxa8 {[%clk 0:00:12]} 1/2-1/2


[Site "https://www.chess.com"]

[Event "Titled Tuesday Blitz July 18 Early 2023"]
[White "Vokhidov, Shamsiddin"]
[Black "Petrosian, Karlen"]
[WhiteFideId "14204223"]
[BlackFideId "4176146"]
[WhiteElo "2904"]
[BlackElo "2615"]
[Result "1-0"]
[Round "9"]
[TimeControl "180+2"]
[Date "2023.07.18"]
[WhiteClock "0:01:42"]
[BlackClock "0:00:27"]
[Board "33"]

1. d4 {[%clk 0:03:00]}  Nf6 {[%clk 0:02:55]} 2. c4 {[%clk 0:03:00]}  d6 {[%clk 0:02:47]} 3. Nc3 {[%clk 0:02:59]}  g6 {[%clk 0:02:40]} 4. e4 {[%clk 0:02:58]}  Bg7 {[%clk 0:02:41]} 5. h3 {[%clk 0:02:58]}  e5 {[%clk 0:02:38]} 6. Nf3 {[%clk 0:02:44]}  exd4 {[%clk 0:02:32]} 7. Nxd4 {[%clk 0:02:45]}  O-O {[%clk 0:02:32]} 8. Bd3 {[%clk 0:02:45]}  Re8 {[%clk 0:02:30]} 9. O-O {[%clk 0:02:45]}  Nfd7 {[%clk 0:02:21]} 10. Be3 {[%clk 0:02:44]}  Ne5 {[%clk 0:02:16]} 11. Be2 {[%clk 0:02:44]}  Nbc6 {[%clk 0:02:16]} 12. Qd2 {[%clk 0:02:43]}  Nxd4 {[%clk 0:02:11]} 13. Bxd4 {[%clk 0:02:42]}  Nc6 {[%clk 0:02:10]} 14. Bxg7 {[%clk 0:02:41]}  Kxg7 {[%clk 0:02:11]} 15. f4 {[%clk 0:02:40]}  Qf6 {[%clk 0:02:06]} 16. Nd5 {[%clk 0:02:38]}  Qd4+ {[%clk 0:01:52]} 17. Qxd4+ {[%clk 0:02:38]}  Nxd4 {[%clk 0:01:53]} 18. Bd3 {[%clk 0:02:38]}  Ne6 {[%clk 0:01:45]} 19. f5 {[%clk 0:02:33]}  Nc5 {[%clk 0:01:46]} 20. Nxc7 {[%clk 0:02:33]}  Bd7 {[%clk 0:01:42]} 21. Nxe8+ {[%clk 0:02:31]}  Rxe8 {[%clk 0:01:41]} 22. Bc2 {[%clk 0:02:32]}  Bc6 {[%clk 0:01:40]} 23. Rad1 {[%clk 0:02:30]}  Nxe4 {[%clk 0:01:38]} 24. Bxe4 {[%clk 0:02:28]}  Bxe4 {[%clk 0:01:39]} 25. fxg6 {[%clk 0:02:27]}  hxg6 {[%clk 0:01:35]} 26. Rxd6 {[%clk 0:02:28]}  Bc6 {[%clk 0:01:35]} 27. b4 {[%clk 0:02:28]}  a6 {[%clk 0:01:35]} 28. a3 {[%clk 0:02:12]}  Re3 {[%clk 0:01:34]} 29. Rdf6 {[%clk 0:02:12]}  Rxa3 {[%clk 0:01:24]} 30. Rxf7+ {[%clk 0:02:12]}  Kh6 {[%clk 0:01:25]} 31. R1f4 {[%clk 0:02:08]}  Rb3 {[%clk 0:01:17]} 32. Rh4+ {[%clk 0:02:07]}  Kg5 {[%clk 0:01:17]} 33. Rg4+ {[%clk 0:02:08]}  Kh6 {[%clk 0:01:17]} 34. Rf6 {[%clk 0:02:06]}  Be8 {[%clk 0:01:16]} 35. Rf8 {[%clk 0:02:03]}  Bd7 {[%clk 0:01:13]} 36. Rd4 {[%clk 0:02:02]}  Bc6 {[%clk 0:01:10]} 37. c5 {[%clk 0:02:01]}  Rb2 {[%clk 0:01:01]} 38. Rf2 {[%clk 0:02:00]}  Rb1+ {[%clk 0:01:01]} 39. Kh2 {[%clk 0:02:00]}  Kg7 {[%clk 0:00:51]} 40. Kg3 {[%clk 0:01:59]}  Rb3+ {[%clk 0:00:50]} 41. Kf4 {[%clk 0:01:58]}  Rb1 {[%clk 0:00:49]} 42. Kg5 {[%clk 0:01:58]}  Re1 {[%clk 0:00:47]} 43. h4 {[%clk 0:01:49]}  a5 {[%clk 0:00:44]} 44. bxa5 {[%clk 0:01:46]}  Re5+ {[%clk 0:00:43]} 45. Kg4 {[%clk 0:01:46]}  Rxc5 {[%clk 0:00:44]} 46. Ra2 {[%clk 0:01:46]}  Bb5 {[%clk 0:00:36]} 47. Kg3 {[%clk 0:01:43]}  Rc3+ {[%clk 0:00:35]} 48. Kh2 {[%clk 0:01:43]}  Kf6 {[%clk 0:00:34]} 49. Rd6+ {[%clk 0:01:42]}  Kf5 {[%clk 0:00:27]} 50. Rd5+ {[%clk 0:01:42]} 1-0


[Site "https://www.chess.com"]

[Event "Titled Tuesday Blitz July 18 Early 2023"]
[White "Sanchez Alvares, Kelvin Antonio"]
[Black "Gholami Orimi, Mahdi"]
[WhiteFideId "3906680"]
[BlackFideId "12558486"]
[WhiteElo "2613"]
[BlackElo "2901"]
[Result "1-0"]
[Round "9"]
[TimeControl "180+2"]
[Date "2023.07.18"]
[WhiteClock "0:01:29"]
[BlackClock "0:00:17"]
[Board "34"]

1. e4 {[%clk 0:03:00]}  g6 {[%clk 0:02:59]} 2. d4 {[%clk 0:03:00]}  Bg7 {[%clk 0:02:58]} 3. Nc3 {[%clk 0:03:01]}  d6 {[%clk 0:02:59]} 4. f4 {[%clk 0:03:00]}  a6 {[%clk 0:02:57]} 5. Bd3 {[%clk 0:02:56]}  Bxd4 {[%clk 0:02:56]} 6. Nf3 {[%clk 0:02:55]}  Bg7 {[%clk 0:02:56]} 7. O-O {[%clk 0:02:54]}  c5 {[%clk 0:02:56]} 8. e5 {[%clk 0:02:51]}  Nc6 {[%clk 0:02:56]} 9. exd6 {[%clk 0:02:49]}  Qxd6 {[%clk 0:02:50]} 10. Ne4 {[%clk 0:02:41]}  Qd8 {[%clk 0:02:46]} 11. Be3 {[%clk 0:02:37]}  b6 {[%clk 0:02:45]} 12. Bc4 {[%clk 0:02:24]}  Qxd1 {[%clk 0:02:38]} 13. Raxd1 {[%clk 0:02:25]}  Nh6 {[%clk 0:02:39]} 14. Bd5 {[%clk 0:02:16]}  Bb7 {[%clk 0:02:34]} 15. b4 {[%clk 0:02:16]}  Nf5 {[%clk 0:02:22]} 16. Bf2 {[%clk 0:02:14]}  e6 {[%clk 0:02:17]} 17. Bxc6+ {[%clk 0:02:08]}  Bxc6 {[%clk 0:02:17]} 18. Nd6+ {[%clk 0:02:09]}  Nxd6 {[%clk 0:02:17]} 19. Rxd6 {[%clk 0:02:10]}  Bb5 {[%clk 0:02:12]} 20. Rfd1 {[%clk 0:02:07]}  cxb4 {[%clk 0:02:10]} 21. Rxb6 {[%clk 0:01:57]}  O-O {[%clk 0:02:07]} 22. Nd4 {[%clk 0:01:54]}  Bc4 {[%clk 0:01:52]} 23. Rxb4 {[%clk 0:01:50]}  Bxa2 {[%clk 0:01:09]} 24. Nc6 {[%clk 0:01:49]}  Kh8 {[%clk 0:00:58]} 25. Rd7 {[%clk 0:01:41]}  Bd5 {[%clk 0:00:53]} 26. Ne7 {[%clk 0:01:38]}  Rab8 {[%clk 0:00:31]} 27. Bc5 {[%clk 0:01:32]}  Rxb4 {[%clk 0:00:25]} 28. Bxb4 {[%clk 0:01:33]}  Ba8 {[%clk 0:00:25]} 29. Nxg6+ {[%clk 0:01:29]}  hxg6 {[%clk 0:00:20]} 30. Bxf8 {[%clk 0:01:29]}  Bxf8 {[%clk 0:00:17]} 31. Rd8 {[%clk 0:01:29]} 1-0


[Site "https://www.chess.com"]

[Event "Titled Tuesday Blitz July 18 Early 2023"]
[White "Baskakov, Egor"]
[Black "Al-Tarboush, Ward"]
[WhiteFideId "24197866"]
[BlackFideId "7601450"]
[WhiteElo "2857"]
[BlackElo "2600"]
[Result "1-0"]
[Round "9"]
[TimeControl "180+2"]
[Date "2023.07.18"]
[WhiteClock "0:01:33"]
[BlackClock "0:00:00"]
[Board "35"]

1. e4 {[%clk 0:03:00]}  c5 {[%clk 0:02:58]} 2. Nf3 {[%clk 0:03:00]}  e6 {[%clk 0:02:59]} 3. Be2 {[%clk 0:02:59]}  a6 {[%clk 0:02:56]} 4. c4 {[%clk 0:02:59]}  Nc6 {[%clk 0:02:53]} 5. Nc3 {[%clk 0:02:59]}  g6 {[%clk 0:02:48]} 6. d4 {[%clk 0:02:59]}  cxd4 {[%clk 0:02:47]} 7. Nxd4 {[%clk 0:03:00]}  Nge7 {[%clk 0:02:46]} 8. O-O {[%clk 0:02:58]}  Bg7 {[%clk 0:02:46]} 9. Be3 {[%clk 0:02:59]}  O-O {[%clk 0:02:45]} 10. Qd2 {[%clk 0:02:58]}  b6 {[%clk 0:02:38]} 11. Rfd1 {[%clk 0:02:58]}  Bb7 {[%clk 0:02:28]} 12. Rac1 {[%clk 0:02:58]}  Rc8 {[%clk 0:02:27]} 13. b3 {[%clk 0:02:53]}  Qc7 {[%clk 0:02:26]} 14. Ncb5 {[%clk 0:02:17]}  axb5 {[%clk 0:02:19]} 15. cxb5 {[%clk 0:02:18]}  Bxd4 {[%clk 0:01:49]} 16. Bxd4 {[%clk 0:02:16]}  Nxd4 {[%clk 0:01:49]} 17. Rxc7 {[%clk 0:02:16]}  Nxe2+ {[%clk 0:01:49]} 18. Qxe2 {[%clk 0:02:17]}  Rxc7 {[%clk 0:01:49]} 19. Qe3 {[%clk 0:02:13]}  Nc8 {[%clk 0:01:46]} 20. a4 {[%clk 0:02:12]}  d6 {[%clk 0:00:27]} 21. h4 {[%clk 0:02:10]}  Rc5 {[%clk 0:00:27]} 22. Rc1 {[%clk 0:02:02]}  Rxc1+ {[%clk 0:00:21]} 23. Qxc1 {[%clk 0:02:03]}  Bxe4 {[%clk 0:00:22]} 24. b4 {[%clk 0:01:57]}  Ne7 {[%clk 0:00:13]} 25. Qc7 {[%clk 0:01:55]}  Nd5 {[%clk 0:00:13]} 26. Qxd6 {[%clk 0:01:55]}  Rc8 {[%clk 0:00:11]} 27. a5 {[%clk 0:01:49]}  Rc1+ {[%clk 0:00:03]} 28. Kh2 {[%clk 0:01:48]}  Rc2 {[%clk 0:00:03]} 29. Kg3 {[%clk 0:01:39]}  Rc3+ {[%clk 0:00:03]} 30. f3 {[%clk 0:01:39]}  Bf5 {[%clk 0:00:00]} 31. a6 {[%clk 0:01:33]} 1-0


[Site "https://www.chess.com"]

[Event "Titled Tuesday Blitz July 18 Early 2023"]
[White "Wagner, Dennis"]
[Black "Colas, Joshua"]
[WhiteFideId "24650684"]
[BlackFideId "2044447"]
[WhiteElo "2769"]
[BlackElo "2596"]
[Result "1-0"]
[Round "9"]
[TimeControl "180+2"]
[Date "2023.07.18"]
[WhiteClock "0:00:10"]
[BlackClock "0:00:00"]
[Board "37"]

1. d4 {[%clk 0:03:00]}  d5 {[%clk 0:02:58]} 2. Nf3 {[%clk 0:03:01]}  Nf6 {[%clk 0:02:58]} 3. c4 {[%clk 0:03:00]}  e6 {[%clk 0:02:59]} 4. g3 {[%clk 0:03:01]}  Be7 {[%clk 0:02:55]} 5. Bg2 {[%clk 0:03:01]}  O-O {[%clk 0:02:55]} 6. O-O {[%clk 0:03:02]}  dxc4 {[%clk 0:02:56]} 7. Qa4 {[%clk 0:03:01]}  a6 {[%clk 0:02:56]} 8. Qxc4 {[%clk 0:03:01]}  b5 {[%clk 0:02:57]} 9. Qc2 {[%clk 0:03:02]}  Bb7 {[%clk 0:02:57]} 10. Bg5 {[%clk 0:03:03]}  Nbd7 {[%clk 0:02:54]} 11. Bxf6 {[%clk 0:03:03]}  Nxf6 {[%clk 0:02:51]} 12. Nbd2 {[%clk 0:03:02]}  Rc8 {[%clk 0:02:42]} 13. Nb3 {[%clk 0:03:03]}  Be4 {[%clk 0:02:41]} 14. Qc3 {[%clk 0:03:00]}  Nd5 {[%clk 0:02:41]} 15. Qc1 {[%clk 0:02:46]}  c5 {[%clk 0:02:19]} 16. dxc5 {[%clk 0:02:35]}  a5 {[%clk 0:02:17]} 17. c6 {[%clk 0:02:29]}  Qb6 {[%clk 0:02:07]} 18. Ne5 {[%clk 0:02:24]}  Bxg2 {[%clk 0:02:05]} 19. Kxg2 {[%clk 0:02:25]}  Rfd8 {[%clk 0:01:57]} 20. Rd1 {[%clk 0:00:31]}  f6 {[%clk 0:01:35]} 21. Nf3 {[%clk 0:00:27]}  Rxc6 {[%clk 0:01:31]} 22. Qb1 {[%clk 0:00:28]}  Rcd6 {[%clk 0:01:28]} 23. Nbd4 {[%clk 0:00:24]}  Nc7 {[%clk 0:00:58]} 24. Qc2 {[%clk 0:00:20]}  a4 {[%clk 0:00:52]} 25. Rac1 {[%clk 0:00:19]}  Na6 {[%clk 0:00:43]} 26. Nc6 {[%clk 0:00:15]}  Rxd1 {[%clk 0:00:36]} 27. Nxe7+ {[%clk 0:00:14]}  Kf7 {[%clk 0:00:36]} 28. Rxd1 {[%clk 0:00:15]}  Rxd1 {[%clk 0:00:36]} 29. Qxd1 {[%clk 0:00:15]}  Kxe7 {[%clk 0:00:37]} 30. Qc2 {[%clk 0:00:15]}  Kf7 {[%clk 0:00:27]} 31. Qxh7 {[%clk 0:00:15]}  Nb4 {[%clk 0:00:20]} 32. a3 {[%clk 0:00:15]}  Nd5 {[%clk 0:00:20]} 33. h4 {[%clk 0:00:15]}  Ne7 {[%clk 0:00:19]} 34. h5 {[%clk 0:00:15]}  Nf5 {[%clk 0:00:19]} 35. Qg6+ {[%clk 0:00:15]}  Kf8 {[%clk 0:00:19]} 36. g4 {[%clk 0:00:15]}  Nh6 {[%clk 0:00:18]} 37. g5 {[%clk 0:00:15]}  Ng4 {[%clk 0:00:14]} 38. e3 {[%clk 0:00:16]}  Qc6 {[%clk 0:00:13]} 39. gxf6 {[%clk 0:00:10]}  Nxf6 {[%clk 0:00:07]} 40. h6 {[%clk 0:00:11]}  Nd7 {[%clk 0:00:01]} 41. Qxg7+ {[%clk 0:00:10]}  Ke8 {[%clk 0:00:00]} 42. h7 {[%clk 0:00:10]} 1-0


[Site "https://www.chess.com"]

[Event "Titled Tuesday Blitz July 18 Early 2023"]
[White "Nazari, Arad"]
[Black "Pinero Rodriguez, Carlos Jose"]
[WhiteFideId "12577324"]
[BlackFideId "3901726"]
[WhiteElo "2744"]
[BlackElo "2590"]
[Result "0-1"]
[Round "9"]
[TimeControl "180+2"]
[Date "2023.07.18"]
[WhiteClock "0:00:00"]
[BlackClock "0:00:39"]
[Board "39"]

1. e4 {[%clk 0:03:00]}  c5 {[%clk 0:03:00]} 2. Nf3 {[%clk 0:03:00]}  e6 {[%clk 0:03:00]} 3. d4 {[%clk 0:02:59]}  cxd4 {[%clk 0:03:01]} 4. Nxd4 {[%clk 0:02:59]}  a6 {[%clk 0:03:02]} 5. Bd3 {[%clk 0:02:58]}  Qc7 {[%clk 0:02:58]} 6. O-O {[%clk 0:02:55]}  Nf6 {[%clk 0:02:58]} 7. Qe2 {[%clk 0:02:55]}  h5 {[%clk 0:02:58]} 8. e5 {[%clk 0:02:29]}  Ng4 {[%clk 0:02:58]} 9. Bf4 {[%clk 0:02:17]}  Bc5 {[%clk 0:02:53]} 10. Nf3 {[%clk 0:02:09]}  f5 {[%clk 0:02:50]} 11. h3 {[%clk 0:01:48]}  Nc6 {[%clk 0:02:49]} 12. hxg4 {[%clk 0:01:44]}  hxg4 {[%clk 0:02:50]} 13. Nh2 {[%clk 0:01:37]}  b5 {[%clk 0:02:45]} 14. Nxg4 {[%clk 0:01:22]}  Nd4 {[%clk 0:02:18]} 15. Qd1 {[%clk 0:01:17]}  Bb7 {[%clk 0:02:13]} 16. c3 {[%clk 0:00:53]}  Nc6 {[%clk 0:02:07]} 17. Ne3 {[%clk 0:00:19]}  g5 {[%clk 0:01:54]} 18. Bg3 {[%clk 0:00:14]}  Nxe5 {[%clk 0:01:41]} 19. Nxf5 {[%clk 0:00:11]}  Qc6 {[%clk 0:01:07]} 20. Nd6+ {[%clk 0:00:04]}  Qxd6 {[%clk 0:00:50]} 21. Bg6+ {[%clk 0:00:03]}  Ke7 {[%clk 0:00:49]} 22. Qxd6+ {[%clk 0:00:02]}  Bxd6 {[%clk 0:00:50]} 23. Bc2 {[%clk 0:00:00]}  Rh6 {[%clk 0:00:39]} 0-1


[Site "https://www.chess.com"]